[Event "*** Titled Tuesday Blitz"]
[Site "Chess.com"]
[Date "2020.04.07"]
[Round "5"]
[White "Mr_Sinigami"]
[Black "Parhamov"]
[Result "0-1"]
[WhiteElo "2602"]
[BlackElo "3080"]
[TimeControl "180+1"]
[EndTime "13:54:32 PDT"]
[Termination "Parhamov won on time"]

1. d4 {[%clk 0:03:00.7]} 1... Nf6 {[%clk 0:02:58.9]} 2. Nf3 {[%clk 0:03:01.1]}
2... e6 {[%clk 0:02:56.3]} 3. Bf4 {[%clk 0:03:01.3]} 3... c5 {[%clk 0:02:54.1]}
4. e3 {[%clk 0:03:01.3]} 4... Qb6 {[%clk 0:02:45.4]} 5. Nc3 {[%clk 0:02:50.8]}
5... a6 {[%clk 0:02:37.1]} 6. Rb1 {[%clk 0:02:46.9]} 6... d5 {[%clk 0:02:36.5]}
7. Na4 {[%clk 0:02:26.3]} 7... Qa5+ {[%clk 0:02:35.9]} 8. c3 {[%clk 0:02:26.5]}
8... c4 {[%clk 0:02:31.8]} 9. Be2 {[%clk 0:01:56.4]} 9... Bd7 {[%clk 0:02:28.8]}
10. Nc5 {[%clk 0:01:55.4]} 10... Bxc5 {[%clk 0:02:28.2]} 11. dxc5 {[%clk
0:01:55.2]} 11... Qxc5 {[%clk 0:02:29.1]} 12. O-O {[%clk 0:01:48.3]} 12... Nc6
{[%clk 0:02:28.2]} 13. Ne5 {[%clk 0:01:35.1]} 13... O-O {[%clk 0:02:25.9]} 14.
Nxd7 {[%clk 0:01:20.2]} 14... Nxd7 {[%clk 0:02:25.6]} 15. Bg3 {[%clk 0:01:13.5]}
15... e5 {[%clk 0:02:25.2]} 16. Bf3 {[%clk 0:01:11]} 16... e4 {[%clk 0:02:24.7]}
17. Be2 {[%clk 0:01:06.3]} 17... Nde5 {[%clk 0:02:24.7]} 18. b3 {[%clk
0:00:54.6]} 18... b5 {[%clk 0:02:22.8]} 19. bxc4 {[%clk 0:00:52.9]} 19... dxc4
{[%clk 0:02:22.6]} 20. Bxe5 {[%clk 0:00:30.4]} 20... Nxe5 {[%clk 0:02:22]} 21.
Qd4 {[%clk 0:00:30.7]} 21... Qxd4 {[%clk 0:02:21.6]} 22. exd4 {[%clk 0:00:31.6]}
22... Nd3 {[%clk 0:02:22.5]} 23. f3 {[%clk 0:00:30.9]} 23... e3 {[%clk
0:02:19.7]} 24. Rfd1 {[%clk 0:00:26.4]} 24... Nf4 {[%clk 0:02:17.2]} 25. Kf1
{[%clk 0:00:25.8]} 25... Nd5 {[%clk 0:02:17.4]} 26. Rdc1 {[%clk 0:00:23.9]}
26... f5 {[%clk 0:02:17.6]} 27. a4 {[%clk 0:00:18.3]} 27... Rab8 {[%clk
0:02:17.8]} 28. axb5 {[%clk 0:00:17.7]} 28... axb5 {[%clk 0:02:17]} 29. f4
{[%clk 0:00:10.9]} 29... Nxf4 {[%clk 0:02:16.7]} 30. g3 {[%clk 0:00:03.4]} 30...
Nd3 {[%clk 0:02:14.1]} 31. Rd1 {[%clk 0:00:03.1]} 31... Nf2 {[%clk 0:02:14.2]}
32. Rdc1 {[%clk 0:00:02.5]} 32... Ne4 {[%clk 0:02:12.6]} 33. Rxb5 {[%clk
0:00:02.1]} 33... Nd2+ {[%clk 0:02:12.1]} 0-1

[Event "*** Titled Tuesday Blitz"]
[Site "Chess.com"]
[Date "2020.04.07"]
[Round "5"]
[White "SGchess01"]
[Black "Alohamora11"]
[Result "1-0"]
[WhiteElo "2795"]
[BlackElo "2470"]
[TimeControl "180+1"]
[EndTime "13:54:32 PDT"]
[Termination "SGchess01 won by resignation"]

1. e4 {[%clk 0:03:00.1]} 1... c5 {[%clk 0:03:00]} 2. Nf3 {[%clk 0:03:00.5]} 2...
g6 {[%clk 0:02:59]} 3. c3 {[%clk 0:03:00.3]} 3... Bg7 {[%clk 0:02:58.4]} 4. d4
{[%clk 0:03:00.9]} 4... cxd4 {[%clk 0:02:59.3]} 5. cxd4 {[%clk 0:03:01.8]} 5...
d5 {[%clk 0:02:59.4]} 6. e5 {[%clk 0:03:02]} 6... Bg4 {[%clk 0:02:57.8]} 7. Nbd2
{[%clk 0:03:01.8]} 7... e6 {[%clk 0:02:54.9]} 8. h3 {[%clk 0:02:57]} 8... Bxf3
{[%clk 0:02:54.6]} 9. Nxf3 {[%clk 0:02:57.9]} 9... Ne7 {[%clk 0:02:55.5]} 10. h4
{[%clk 0:02:56.4]} 10... h5 {[%clk 0:02:43.3]} 11. Bd3 {[%clk 0:02:55.2]} 11...
Nbc6 {[%clk 0:02:42.1]} 12. O-O {[%clk 0:02:53.3]} 12... O-O {[%clk 0:02:38.4]}
13. Bg5 {[%clk 0:02:51.1]} 13... Qb6 {[%clk 0:02:32.6]} 14. Qd2 {[%clk 0:02:46]}
14... Nf5 {[%clk 0:02:27.8]} 15. Bxf5 {[%clk 0:02:45.6]} 15... exf5 {[%clk
0:02:28.7]} 16. Rfe1 {[%clk 0:02:42.7]} 16... Nd8 {[%clk 0:02:07.3]} 17. Bxd8
{[%clk 0:02:34]} 17... Raxd8 {[%clk 0:02:08.2]} 18. Rac1 {[%clk 0:02:34.5]}
18... Rc8 {[%clk 0:02:04.8]} 19. Rxc8 {[%clk 0:02:33.2]} 19... Rxc8 {[%clk
0:02:04.4]} 20. Rc1 {[%clk 0:02:33.7]} 20... Rc6 {[%clk 0:01:45.8]} 21. Rxc6
{[%clk 0:02:31.3]} 21... Qxc6 {[%clk 0:01:46.7]} 22. g3 {[%clk 0:02:30.8]} 22...
Bf8 {[%clk 0:01:46.2]} 23. Kg2 {[%clk 0:02:30.3]} 23... Be7 {[%clk 0:01:34.2]}
24. Ne1 {[%clk 0:02:26.6]} 24... Qc4 {[%clk 0:01:32.8]} 25. b3 {[%clk
0:02:25.2]} 25... Qb4 {[%clk 0:01:29.6]} 26. Qxb4 {[%clk 0:02:08.5]} 26... Bxb4
{[%clk 0:01:30.5]} 27. Nc2 {[%clk 0:02:09.3]} 27... Bd2 {[%clk 0:01:26.2]} 28.
Kf3 {[%clk 0:02:07.2]} 28... a5 {[%clk 0:01:25.3]} 29. Ke2 {[%clk 0:02:07.2]}
29... Bc1 {[%clk 0:01:19.3]} 30. Kd1 {[%clk 0:02:04.7]} 30... Bh6 {[%clk
0:01:18.5]} 31. f4 {[%clk 0:02:04.5]} 31... Kf8 {[%clk 0:01:09.4]} 32. Ne3
{[%clk 0:02:04.3]} 32... Ke7 {[%clk 0:01:00.2]} 33. Nxd5+ {[%clk 0:02:03.2]}
33... Kd7 {[%clk 0:01:00.7]} 34. Nc3 {[%clk 0:02:00.6]} 34... Kc6 {[%clk
0:01:01.6]} 35. a4 {[%clk 0:01:56.6]} 35... Bf8 {[%clk 0:01:02]} 36. Kc2 {[%clk
0:01:52.5]} 36... Bb4 {[%clk 0:01:02.9]} 37. Kd3 {[%clk 0:01:49.2]} 37... Bxc3
{[%clk 0:00:54.4]} 38. Kxc3 {[%clk 0:01:48]} 38... Kd5 {[%clk 0:00:55]} 39. Kd3
{[%clk 0:01:48.2]} 39... b6 {[%clk 0:00:55.5]} 40. Kc3 {[%clk 0:01:48.3]} 40...
Ke4 {[%clk 0:00:55.4]} 41. Kc4 {[%clk 0:01:48.7]} 41... Kf3 {[%clk 0:00:55.5]}
42. d5 {[%clk 0:01:49.3]} 42... Kxg3 {[%clk 0:00:56.4]} 43. d6 {[%clk
0:01:49.6]} 43... Kxf4 {[%clk 0:00:57]} 44. d7 {[%clk 0:01:50.2]} 44... Kxe5
{[%clk 0:00:57.8]} 45. d8=Q {[%clk 0:01:50.9]} 45... Kf4 {[%clk 0:00:58.4]} 46.
Kd4 {[%clk 0:01:50.3]} 46... Kg3 {[%clk 0:00:58.2]} 47. Qg5+ {[%clk 0:01:48.1]}
47... Kf3 {[%clk 0:00:58]} 1-0

[Event "*** Titled Tuesday Blitz"]
[Site "Chess.com"]
[Date "2020.04.07"]
[Round "5"]
[White "GreatDamnedRedSpot"]
[Black "GameOverBro"]
[Result "0-1"]
[WhiteElo "2311"]
[BlackElo "2506"]
[TimeControl "180+1"]
[EndTime "13:54:49 PDT"]
[Termination "GameOverBro won on time"]

1. e4 {[%clk 0:03:00.9]} 1... d6 {[%clk 0:02:59]} 2. Ne2 {[%clk 0:02:59.1]} 2...
Nf6 {[%clk 0:02:58.7]} 3. Nbc3 {[%clk 0:02:59.6]} 3... g6 {[%clk 0:02:55.1]} 4.
d4 {[%clk 0:02:59.3]} 4... Bg7 {[%clk 0:02:53.2]} 5. f3 {[%clk 0:02:59.5]} 5...
c6 {[%clk 0:02:46.1]} 6. Be3 {[%clk 0:02:57.1]} 6... b5 {[%clk 0:02:40.2]} 7.
Qd2 {[%clk 0:02:56.4]} 7... a5 {[%clk 0:02:36.7]} 8. a3 {[%clk 0:02:48.6]} 8...
Bb7 {[%clk 0:02:25.7]} 9. Nd1 {[%clk 0:02:40.8]} 9... Nbd7 {[%clk 0:02:21.6]}
10. Nf2 {[%clk 0:02:26.4]} 10... h5 {[%clk 0:02:12]} 11. h4 {[%clk 0:02:23.8]}
11... e5 {[%clk 0:02:04.1]} 12. dxe5 {[%clk 0:02:12.6]} 12... Nxe5 {[%clk
0:01:54.6]} 13. Nc3 {[%clk 0:01:26.5]} 13... Qc7 {[%clk 0:01:47.2]} 14. Be2
{[%clk 0:01:15.5]} 14... Rd8 {[%clk 0:01:25.2]} 15. Bg5 {[%clk 0:00:40.2]} 15...
Rd7 {[%clk 0:01:17.9]} 16. O-O {[%clk 0:00:36.7]} 16... O-O {[%clk 0:01:17.3]}
17. Bh6 {[%clk 0:00:13.8]} 17... Qb6 {[%clk 0:01:13.1]} 18. Be3 {[%clk
0:00:12.4]} 18... Qc7 {[%clk 0:01:11.8]} 19. g3 {[%clk 0:00:12.8]} 19... b4
{[%clk 0:01:08]} 20. Ncd1 {[%clk 0:00:10.4]} 20... d5 {[%clk 0:01:07]} 21. f4
{[%clk 0:00:01]} 21... dxe4 {[%clk 0:01:03.3]} 0-1

[Event "*** Titled Tuesday Blitz"]
[Site "Chess.com"]
[Date "2020.04.07"]
[Round "5"]
[White "Stameny"]
[Black "ethylalcohol"]
[Result "1-0"]
[WhiteElo "2491"]
[BlackElo "2154"]
[TimeControl "180+1"]
[EndTime "13:54:54 PDT"]
[Termination "Stameny won on time"]

1. e4 {[%clk 0:03:00.9]} 1... e6 {[%clk 0:02:59.8]} 2. Qe2 {[%clk 0:02:55.6]}
2... Qe7 {[%clk 0:02:57.8]} 3. Nc3 {[%clk 0:02:53.9]} 3... g6 {[%clk 0:02:51.2]}
4. g3 {[%clk 0:02:50.5]} 4... Bg7 {[%clk 0:02:51.4]} 5. Bg2 {[%clk 0:02:50.8]}
5... d6 {[%clk 0:02:49.6]} 6. f4 {[%clk 0:02:50.4]} 6... Nc6 {[%clk 0:02:49.3]}
7. Nf3 {[%clk 0:02:50.5]} 7... Nd4 {[%clk 0:02:45.6]} 8. Nxd4 {[%clk 0:02:49.9]}
8... Bxd4 {[%clk 0:02:46]} 9. d3 {[%clk 0:02:45.7]} 9... Bd7 {[%clk 0:02:23.5]}
10. Bd2 {[%clk 0:02:43]} 10... O-O-O {[%clk 0:02:19.7]} 11. O-O-O {[%clk
0:02:38.4]} 11... Qf6 {[%clk 0:02:11.8]} 12. g4 {[%clk 0:02:34]} 12... b5 {[%clk
0:01:48.7]} 13. Rdf1 {[%clk 0:02:33.1]} 13... b4 {[%clk 0:01:46]} 14. Nd1 {[%clk
0:02:33.1]} 14... a5 {[%clk 0:01:44.1]} 15. g5 {[%clk 0:02:33.1]} 15... Qg7
{[%clk 0:01:43.8]} 16. c3 {[%clk 0:02:11.8]} 16... bxc3 {[%clk 0:01:40.2]} 17.
bxc3 {[%clk 0:02:12.7]} 17... Bc5 {[%clk 0:01:39.2]} 18. d4 {[%clk 0:02:12.7]}
18... Ba3+ {[%clk 0:01:39]} 19. Kb1 {[%clk 0:02:13]} 19... Ba4 {[%clk
0:01:26.8]} 20. Qa6+ {[%clk 0:01:54]} 20... Kd7 {[%clk 0:01:27.2]} 21. Qxa5
{[%clk 0:01:54]} 21... Rb8+ {[%clk 0:01:27.3]} 22. Ka1 {[%clk 0:01:52.8]} 22...
Bxd1 {[%clk 0:01:15]} 23. Qxa3 {[%clk 0:01:52.3]} 23... Be2 {[%clk 0:01:15.1]}
24. Rb1 {[%clk 0:01:41.5]} 24... Ne7 {[%clk 0:01:14.5]} 25. Qa4+ {[%clk
0:01:41.4]} 25... Nc6 {[%clk 0:01:12]} 26. d5 {[%clk 0:01:35]} 26... Ke7 {[%clk
0:00:02.6]} 27. Qxc6 {[%clk 0:01:29.3]} 1-0

[Event "*** Titled Tuesday Blitz"]
[Site "Chess.com"]
[Date "2020.04.07"]
[Round "5"]
[White "Magician4MA"]
[Black "Euwe1234"]
[Result "1-0"]
[WhiteElo "2482"]
[BlackElo "2133"]
[TimeControl "180+1"]
[EndTime "13:54:54 PDT"]
[Termination "Magician4MA won by resignation"]

1. e4 {[%clk 0:03:00.9]} 1... c5 {[%clk 0:02:55.8]} 2. Nf3 {[%clk 0:02:57.8]}
2... Nc6 {[%clk 0:02:55.7]} 3. d4 {[%clk 0:02:55.4]} 3... Nxd4 {[%clk
0:02:54.9]} 4. Nxd4 {[%clk 0:02:56.3]} 4... cxd4 {[%clk 0:02:54.9]} 5. Qxd4
{[%clk 0:02:50.8]} 5... d6 {[%clk 0:02:52.5]} 6. Nc3 {[%clk 0:02:43.3]} 6... Nf6
{[%clk 0:02:51.2]} 7. Bg5 {[%clk 0:02:40.2]} 7... e6 {[%clk 0:02:50.8]} 8. Bb5+
{[%clk 0:02:31.5]} 8... Bd7 {[%clk 0:02:49.1]} 9. O-O-O {[%clk 0:01:58.9]} 9...
Qa5 {[%clk 0:02:20.9]} 10. Bxf6 {[%clk 0:01:23.3]} 10... gxf6 {[%clk 0:02:16.5]}
11. Qxf6 {[%clk 0:01:00.9]} 11... Bxb5 {[%clk 0:01:55]} 12. Qxh8 {[%clk
0:01:00.3]} 12... O-O-O {[%clk 0:01:54]} 13. Qxh7 {[%clk 0:00:58.1]} 13... Bc4
{[%clk 0:01:52.5]} 14. Kb1 {[%clk 0:00:52.9]} 14... d5 {[%clk 0:01:52.2]} 15.
exd5 {[%clk 0:00:45.7]} 15... Bb4 {[%clk 0:01:51.5]} 16. Qh3 {[%clk 0:00:15.3]}
16... Bxc3 {[%clk 0:01:40.1]} 17. Qxc3 {[%clk 0:00:15]} 17... Qxa2+ {[%clk
0:01:37.9]} 18. Kc1 {[%clk 0:00:15.1]} 18... Qa1+ {[%clk 0:01:26.7]} 19. Kd2
{[%clk 0:00:14.9]} 19... Rxd5+ {[%clk 0:01:26.1]} 20. Ke3 {[%clk 0:00:14.7]}
20... Rxd1 {[%clk 0:01:25.6]} 21. Qxc4+ {[%clk 0:00:14.8]} 21... Kd7 {[%clk
0:01:05.5]} 22. Rxd1+ {[%clk 0:00:14]} 22... Qxd1 {[%clk 0:01:04.8]} 23. Qd4+
{[%clk 0:00:14.5]} 23... Qxd4+ {[%clk 0:01:04.6]} 24. Kxd4 {[%clk 0:00:15.4]}
24... Kd6 {[%clk 0:01:05.1]} 25. h4 {[%clk 0:00:15.3]} 25... e5+ {[%clk
0:01:05.4]} 26. Ke4 {[%clk 0:00:15.4]} 26... Ke6 {[%clk 0:01:05.9]} 27. g4
{[%clk 0:00:15.8]} 27... Kf6 {[%clk 0:01:06.2]} 28. Kd5 {[%clk 0:00:11.7]} 1-0

[Event "*** Titled Tuesday Blitz"]
[Site "Chess.com"]
[Date "2020.04.07"]
[Round "5"]
[White "Tormoz"]
[Black "Hadza_3"]
[Result "1-0"]
[WhiteElo "2659"]
[BlackElo "2433"]
[TimeControl "180+1"]
[EndTime "13:54:55 PDT"]
[Termination "Tormoz won by resignation"]

1. d4 {[%clk 0:03:00.9]} 1... Nf6 {[%clk 0:02:59.6]} 2. Nf3 {[%clk 0:03:00.7]}
2... g6 {[%clk 0:02:59.6]} 3. c4 {[%clk 0:03:00]} 3... Bg7 {[%clk 0:02:59.7]} 4.
g3 {[%clk 0:03:00.5]} 4... d6 {[%clk 0:03:00.3]} 5. Bg2 {[%clk 0:03:00.6]} 5...
c6 {[%clk 0:03:01.2]} 6. O-O {[%clk 0:03:00.7]} 6... Qa5 {[%clk 0:03:01.8]} 7.
Nc3 {[%clk 0:03:00.4]} 7... Qh5 {[%clk 0:03:01.7]} 8. e4 {[%clk 0:02:59.1]} 8...
Bg4 {[%clk 0:03:01.7]} 9. Qd3 {[%clk 0:02:58.6]} 9... Nbd7 {[%clk 0:03:00.4]}
10. Ne1 {[%clk 0:02:51]} 10... e5 {[%clk 0:02:58.3]} 11. f3 {[%clk 0:02:50.5]}
11... Bh3 {[%clk 0:02:57.5]} 12. Nc2 {[%clk 0:02:49.9]} 12... Bxg2 {[%clk
0:02:54.9]} 13. Kxg2 {[%clk 0:02:50.8]} 13... O-O {[%clk 0:02:40.9]} 14. d5
{[%clk 0:02:50.9]} 14... cxd5 {[%clk 0:02:39.8]} 15. Nxd5 {[%clk 0:02:43.4]}
15... Nxd5 {[%clk 0:02:26.5]} 16. Qxd5 {[%clk 0:02:44.3]} 16... Nc5 {[%clk
0:02:15.8]} 17. Be3 {[%clk 0:02:38.7]} 17... Ne6 {[%clk 0:02:12.3]} 18. Rad1
{[%clk 0:02:32.3]} 18... Rfd8 {[%clk 0:02:08.5]} 19. Qd2 {[%clk 0:02:22.2]}
19... Rac8 {[%clk 0:01:21.8]} 20. b3 {[%clk 0:02:17.6]} 20... b6 {[%clk
0:01:17.7]} 21. Qf2 {[%clk 0:02:15]} 21... f5 {[%clk 0:01:11.6]} 22. Nb4 {[%clk
0:02:13.7]} 22... Ng5 {[%clk 0:00:42.9]} 23. Bxg5 {[%clk 0:02:11.2]} 23... Qxg5
{[%clk 0:00:43.8]} 24. Qd2 {[%clk 0:02:09]} 24... Qf6 {[%clk 0:00:38.8]} 25. Nd5
{[%clk 0:02:08.2]} 25... Qf8 {[%clk 0:00:39.3]} 26. f4 {[%clk 0:02:06.6]} 26...
exf4 {[%clk 0:00:36.8]} 27. exf5 {[%clk 0:02:03.9]} 27... Re8 {[%clk 0:00:18.5]}
28. fxg6 {[%clk 0:01:56.9]} 28... Be5 {[%clk 0:00:14.6]} 29. gxf4 {[%clk
0:01:53.7]} 29... Bg7 {[%clk 0:00:12.5]} 30. f5 {[%clk 0:01:53.7]} 30... Re5
{[%clk 0:00:10.6]} 31. f6 {[%clk 0:01:52.3]} 31... Bh6 {[%clk 0:00:10]} 32. g7
{[%clk 0:01:43.5]} 32... Qf7 {[%clk 0:00:03.4]} 33. Qxh6 {[%clk 0:01:42.6]}
33... Rce8 {[%clk 0:00:03]} 34. Ne7+ {[%clk 0:01:37.2]} 34... R8xe7 {[%clk
0:00:02.8]} 35. fxe7 {[%clk 0:01:38.1]} 1-0

[Event "*** Titled Tuesday Blitz"]
[Site "Chess.com"]
[Date "2020.04.07"]
[Round "5"]
[White "AlexOstrovskiy"]
[Black "JonahWillow"]
[Result "1/2-1/2"]
[WhiteElo "2613"]
[BlackElo "2771"]
[TimeControl "180+1"]
[EndTime "13:54:56 PDT"]
[Termination "Game drawn by agreement"]

1. d4 {[%clk 0:03:00.9]} 1... Nf6 {[%clk 0:02:59.7]} 2. Bg5 {[%clk 0:03:00.2]}
2... e6 {[%clk 0:03:00.6]} 3. Nd2 {[%clk 0:02:58]} 3... h6 {[%clk 0:02:57]} 4.
Bh4 {[%clk 0:02:54.2]} 4... d5 {[%clk 0:02:51.2]} 5. e3 {[%clk 0:02:39.7]} 5...
Bd6 {[%clk 0:02:46.7]} 6. c3 {[%clk 0:02:34.7]} 6... O-O {[%clk 0:02:46.4]} 7.
f4 {[%clk 0:02:33.9]} 7... c5 {[%clk 0:02:37.8]} 8. Ngf3 {[%clk 0:02:29.5]} 8...
Nc6 {[%clk 0:02:35.9]} 9. Ne5 {[%clk 0:02:24.4]} 9... Be7 {[%clk 0:02:21.2]} 10.
Bd3 {[%clk 0:02:22.1]} 10... Nd7 {[%clk 0:02:14.1]} 11. Bxe7 {[%clk 0:02:19.4]}
11... Qxe7 {[%clk 0:02:13.7]} 12. O-O {[%clk 0:02:09.6]} 12... Rd8 {[%clk
0:01:51.9]} 13. Qh5 {[%clk 0:02:04.6]} 13... Nf6 {[%clk 0:01:48.4]} 14. Qh4
{[%clk 0:01:55.6]} 14... Nd7 {[%clk 0:01:38.2]} 15. Qh5 {[%clk 0:01:47.8]} 15...
f6 {[%clk 0:01:31.9]} 16. Nxc6 {[%clk 0:01:25.4]} 16... bxc6 {[%clk 0:01:32]}
17. Rf3 {[%clk 0:01:26.3]} 17... e5 {[%clk 0:01:06.6]} 18. fxe5 {[%clk
0:01:22.6]} 18... fxe5 {[%clk 0:01:07.5]} 19. Qg6 {[%clk 0:00:59.7]} 19... e4
{[%clk 0:01:04.4]} 20. Nxe4 {[%clk 0:00:59.5]} 20... dxe4 {[%clk 0:01:03.1]} 21.
Bxe4 {[%clk 0:00:54.4]} 21... Nf8 {[%clk 0:00:51.2]} 22. Rxf8+ {[%clk
0:00:52.3]} 22... Rxf8 {[%clk 0:00:52.1]} 23. Qh7+ {[%clk 0:00:44.4]} 23... Kf7
{[%clk 0:00:50.9]} 24. Qg6+ {[%clk 0:00:19.7]} 24... Kg8 {[%clk 0:00:50.3]} 25.
Qh7+ {[%clk 0:00:20.6]} 25... Kf7 {[%clk 0:00:50.5]} 26. Qg6+ {[%clk 0:00:20]}
1/2-1/2

[Event "*** Titled Tuesday Blitz"]
[Site "Chess.com"]
[Date "2020.04.07"]
[Round "5"]
[White "Cocaino74"]
[Black "IMRosen"]
[Result "0-1"]
[WhiteElo "2251"]
[BlackElo "2459"]
[TimeControl "180+1"]
[EndTime "13:54:59 PDT"]
[Termination "IMRosen won on time"]

1. e4 {[%clk 0:03:00.9]} 1... c5 {[%clk 0:02:59.7]} 2. Nf3 {[%clk 0:03:01.4]}
2... Nc6 {[%clk 0:03:00.2]} 3. Bb5 {[%clk 0:03:01.2]} 3... e6 {[%clk 0:03:00.2]}
4. Bxc6 {[%clk 0:02:50.1]} 4... bxc6 {[%clk 0:03:00.1]} 5. O-O {[%clk
0:02:49.9]} 5... Ne7 {[%clk 0:02:59.8]} 6. d3 {[%clk 0:02:47.5]} 6... Ng6 {[%clk
0:02:53.9]} 7. Nc3 {[%clk 0:02:47.2]} 7... e5 {[%clk 0:02:47.8]} 8. h3 {[%clk
0:02:25.8]} 8... d6 {[%clk 0:02:45.6]} 9. Bg5 {[%clk 0:02:19.6]} 9... f6 {[%clk
0:02:44.3]} 10. Be3 {[%clk 0:02:18.7]} 10... Be7 {[%clk 0:02:43.7]} 11. a3
{[%clk 0:02:15.8]} 11... O-O {[%clk 0:02:43.7]} 12. b4 {[%clk 0:02:15.3]} 12...
cxb4 {[%clk 0:02:32]} 13. axb4 {[%clk 0:02:15.4]} 13... d5 {[%clk 0:02:32.2]}
14. Rxa7 {[%clk 0:01:39.9]} 14... Rxa7 {[%clk 0:02:22.6]} 15. Bxa7 {[%clk
0:01:40.8]} 15... Bxb4 {[%clk 0:02:16.1]} 16. Qa1 {[%clk 0:01:40.3]} 16... Be6
{[%clk 0:02:06.8]} 17. Ne2 {[%clk 0:01:28.9]} 17... d4 {[%clk 0:01:30.1]} 18.
Rb1 {[%clk 0:01:24.2]} 18... c5 {[%clk 0:01:26.9]} 19. Qa6 {[%clk 0:01:15.8]}
19... Qd7 {[%clk 0:01:23.8]} 20. Ng3 {[%clk 0:00:23.6]} 20... Ra8 {[%clk
0:01:22.1]} 21. Ra1 {[%clk 0:00:11.7]} 21... Bc3 {[%clk 0:01:15.9]} 22. Ra3
{[%clk 0:00:09.9]} 22... Bb4 {[%clk 0:01:16]} 23. Ra1 {[%clk 0:00:09.8]} 23...
Ne7 {[%clk 0:01:16.7]} 24. Qb6 {[%clk 0:00:06.7]} 24... Nc8 {[%clk 0:01:10]} 0-1

[Event "*** Titled Tuesday Blitz"]
[Site "Chess.com"]
[Date "2020.04.07"]
[Round "5"]
[White "chessdjw"]
[Black "arctic_t00"]
[Result "1-0"]
[WhiteElo "2649"]
[BlackElo "2398"]
[TimeControl "180+1"]
[EndTime "13:55:01 PDT"]
[Termination "chessdjw won by resignation"]

1. e4 {[%clk 0:03:00.9]} 1... e6 {[%clk 0:02:59.9]} 2. d4 {[%clk 0:02:58.8]}
2... d5 {[%clk 0:02:59.9]} 3. Nc3 {[%clk 0:02:59.5]} 3... Nf6 {[%clk 0:02:59.4]}
4. exd5 {[%clk 0:03:00.1]} 4... exd5 {[%clk 0:02:59.1]} 5. Bd3 {[%clk
0:03:00.8]} 5... Be7 {[%clk 0:02:53.3]} 6. h3 {[%clk 0:02:59.6]} 6... O-O {[%clk
0:02:42]} 7. Nf3 {[%clk 0:02:59.3]} 7... Nbd7 {[%clk 0:02:34.2]} 8. O-O {[%clk
0:02:59.2]} 8... c6 {[%clk 0:02:34.2]} 9. Bf4 {[%clk 0:02:58.6]} 9... Nb6 {[%clk
0:02:30.7]} 10. Re1 {[%clk 0:02:55.6]} 10... Re8 {[%clk 0:02:25.6]} 11. Ne5
{[%clk 0:02:52.1]} 11... Be6 {[%clk 0:02:21.3]} 12. Qf3 {[%clk 0:02:44.4]} 12...
Nc4 {[%clk 0:02:14.5]} 13. b3 {[%clk 0:02:28.7]} 13... Nxe5 {[%clk 0:01:56.7]}
14. dxe5 {[%clk 0:02:17.7]} 14... Nd7 {[%clk 0:01:56.3]} 15. Ne2 {[%clk
0:02:17.8]} 15... c5 {[%clk 0:01:48.7]} 16. Ng3 {[%clk 0:02:10]} 16... Nf8
{[%clk 0:01:46.4]} 17. Rad1 {[%clk 0:02:06.9]} 17... Ng6 {[%clk 0:01:45.1]} 18.
Bc1 {[%clk 0:02:02.5]} 18... Qc7 {[%clk 0:01:39.7]} 19. Nf5 {[%clk 0:02:01.8]}
19... Bf8 {[%clk 0:01:36.5]} 20. Qg3 {[%clk 0:01:59.3]} 20... c4 {[%clk
0:01:26.9]} 21. bxc4 {[%clk 0:01:55.8]} 21... dxc4 {[%clk 0:01:26.4]} 22. Be4
{[%clk 0:01:56.4]} 22... Rad8 {[%clk 0:01:21.5]} 23. Nd6 {[%clk 0:01:49.9]}
23... Bxd6 {[%clk 0:01:21]} 24. exd6 {[%clk 0:01:49.7]} 24... Qa5 {[%clk
0:01:15.1]} 25. Bxb7 {[%clk 0:01:44.2]} 25... Qxa2 {[%clk 0:01:13.1]} 26. Bc6
{[%clk 0:01:42]} 26... Rf8 {[%clk 0:01:12.3]} 27. Bg5 {[%clk 0:01:34.7]} 27...
f6 {[%clk 0:00:53.9]} 28. Rxe6 {[%clk 0:01:33.3]} 28... fxg5 {[%clk 0:00:53.8]}
29. Rxg6 {[%clk 0:01:30.5]} 29... Qxc2 {[%clk 0:00:36.7]} 30. Rxg7+ {[%clk
0:01:22.8]} 30... Kxg7 {[%clk 0:00:34.8]} 31. Qe5+ {[%clk 0:01:23.1]} 31... Rf6
{[%clk 0:00:34.7]} 32. Qe7+ {[%clk 0:01:19.1]} 32... Rf7 {[%clk 0:00:34.6]} 33.
Qxg5+ {[%clk 0:01:19.7]} 1-0

[Event "*** Titled Tuesday Blitz"]
[Site "Chess.com"]
[Date "2020.04.07"]
[Round "5"]
[White "riconaipe"]
[Black "davigator"]
[Result "1-0"]
[WhiteElo "2528"]
[BlackElo "2337"]
[TimeControl "180+1"]
[EndTime "13:55:04 PDT"]
[Termination "riconaipe won by resignation"]

1. d4 {[%clk 0:02:16.4]} 1... Nf6 {[%clk 0:02:58.7]} 2. c4 {[%clk 0:02:12.2]}
2... e6 {[%clk 0:02:58.1]} 3. Nc3 {[%clk 0:02:10.8]} 3... Bb4 {[%clk 0:02:57.1]}
4. e3 {[%clk 0:02:11.3]} 4... O-O {[%clk 0:02:56]} 5. Bd3 {[%clk 0:02:11.5]}
5... c5 {[%clk 0:02:54.3]} 6. Ne2 {[%clk 0:02:11.8]} 6... cxd4 {[%clk
0:02:52.7]} 7. exd4 {[%clk 0:02:11.9]} 7... d5 {[%clk 0:02:52.7]} 8. O-O {[%clk
0:02:10.8]} 8... Nc6 {[%clk 0:02:52]} 9. a3 {[%clk 0:02:10.2]} 9... Be7 {[%clk
0:02:50.9]} 10. c5 {[%clk 0:02:09.4]} 10... a5 {[%clk 0:02:49.4]} 11. Bg5 {[%clk
0:02:07.3]} 11... h6 {[%clk 0:02:48.6]} 12. Bh4 {[%clk 0:02:06.5]} 12... b6
{[%clk 0:02:46.4]} 13. cxb6 {[%clk 0:02:02.2]} 13... Qxb6 {[%clk 0:02:45.6]} 14.
Na4 {[%clk 0:02:01.1]} 14... Qa7 {[%clk 0:02:43.6]} 15. Rc1 {[%clk 0:02:00.5]}
15... Bd7 {[%clk 0:02:42.7]} 16. Nc5 {[%clk 0:01:59.2]} 16... Be8 {[%clk
0:02:37.6]} 17. Kh1 {[%clk 0:01:51.5]} 17... Nxd4 {[%clk 0:02:32.1]} 18. Nxd4
{[%clk 0:01:50.9]} 18... Bxc5 {[%clk 0:02:31.4]} 19. Bxf6 {[%clk 0:01:51.5]}
19... gxf6 {[%clk 0:02:30.9]} 20. Qg4+ {[%clk 0:01:42.7]} 20... Kh8 {[%clk
0:02:30.3]} 21. Nf3 {[%clk 0:01:41.7]} 21... Rg8 {[%clk 0:02:19.7]} 22. Qh4
{[%clk 0:01:38.5]} 22... Kg7 {[%clk 0:02:19.4]} 23. b4 {[%clk 0:01:27.9]} 23...
Be7 {[%clk 0:02:16.5]} 24. Qg3+ {[%clk 0:01:16]} 24... Kf8 {[%clk 0:02:12.4]}
25. Qf4 {[%clk 0:01:15.6]} 25... Rh8 {[%clk 0:02:11.7]} 26. b5 {[%clk 0:01:02]}
26... Qb8 {[%clk 0:02:10.9]} 27. Qd2 {[%clk 0:00:55.5]} 27... Bxa3 {[%clk
0:02:06.6]} 28. Rb1 {[%clk 0:00:49.1]} 28... Bb4 {[%clk 0:02:03.6]} 29. Qe3
{[%clk 0:00:38.8]} 29... Qd6 {[%clk 0:01:54.3]} 30. Nd4 {[%clk 0:00:37.3]} 30...
Rb8 {[%clk 0:01:50.6]} 31. Rfc1 {[%clk 0:00:34.3]} 31... h5 {[%clk 0:01:45.2]}
32. f4 {[%clk 0:00:27.8]} 32... h4 {[%clk 0:01:36.6]} 33. h3 {[%clk 0:00:27.4]}
33... Bc5 {[%clk 0:01:20.6]} 34. Rxc5 {[%clk 0:00:26.8]} 34... e5 {[%clk
0:01:18.5]} 35. Nf5 {[%clk 0:00:24.6]} 35... Qd7 {[%clk 0:01:17.6]} 36. fxe5
{[%clk 0:00:20.4]} 36... Qe7 {[%clk 0:01:12.8]} 37. Nxe7 {[%clk 0:00:19.9]} 1-0